Body Name,Body,Supplier Name,Spending Service,Nature of Spend,Ledger Date,Invoice Reference,Net Amount (excluding VAT)
Lancaster City Council,30UH,A G Electrics,Environmental Services,Capital Payments To Contractors,01/05/2013,91440,3425
Lancaster City Council,30UH,A G Electrics,Environmental Services,Capital Payments To Contractors,01/05/2013,91440,1650
Lancaster City Council,30UH,A G Electrics,Environmental Services,Capital Payments To Contractors,01/05/2013,91445,1385
Lancaster City Council,30UH,A Marsden Windows,Health & Housing,Capital Grants,02/05/2013,Inv. AM 557,1658.33
Lancaster City Council,30UH,A Marsden Windows,Health & Housing,Capital Grants,02/05/2013,Inv. AM 558,2100
Lancaster City Council,30UH,A Marsden Windows,Health & Housing,Home Improvement Works,30/05/2013,Inv. AM555,1408.33
Lancaster City Council,30UH,A.A.M. Services Limited,Environmental Services,Capital Payments To Contractors,01/05/2013,7219,2390
Lancaster City Council,30UH,A1 Streamline Road Markings Limited,Environmental Services,Materials - General,03/05/2013,17935/JP,550
Lancaster City Council,30UH,A1 Supaskips Ltd,Environmental Services,Services - Waste Disposal,03/05/2013,51403,1793.56
Lancaster City Council,30UH,A1 Supaskips Ltd,Environmental Services,Services - Waste Disposal,03/05/2013,51525,576.8
Lancaster City Council,30UH,A1 Supaskips Ltd,Environmental Services,Services - Waste Disposal,13/05/2013,51672,1656
Lancaster City Council,30UH,A1 Supaskips Ltd,Environmental Services,Services - Waste Disposal,21/05/2013,51856,1450.86
Lancaster City Council,30UH,Adrian Boardman,Health & Housing,Venue - Premises Hire Costs,22/05/2013,PLAT005,1770
Lancaster City Council,30UH,Adt Fire And Security PLC,Health & Housing,Contract Maintenance,13/05/2013,19095,568.86
Lancaster City Council,30UH,A-ha! Marketing and Media Limited,Health & Housing,Brochure Distribution,07/05/2013,2400,500
Lancaster City Council,30UH,Airspace Solutions.com  Ltd.,Health & Housing,Equipment and Tools - General,16/05/2013,4074,3640
Lancaster City Council,30UH,Airwave Solutions Ltd,Health & Housing,Equipment and Tools - General,15/05/2013,0900000205-026,2339.91
Lancaster City Council,30UH,Alec Lyon,Health & Housing,Services - General,02/05/2013,24413 Platform,540
Lancaster City Council,30UH,Amazon UK,Resources,Mobile Telephones,29/05/2013,19244,1580.22
Lancaster City Council,30UH,Amazon.co.uk (T-Setter),Resources,Capital Payments To Contractors,13/05/2013,19132,6118
Lancaster City Council,30UH,Anchor Flooring Limited,Environmental Services,R & M - Buildings,29/05/2013,AF/3979,608
Lancaster City Council,30UH,Anglo Espanol Ltd t/a Plastech Windows,Environmental Services,Contracted Services,03/05/2013,1804,791.67
Lancaster City Council,30UH,Anglo Espanol Ltd t/a Plastech Windows,Health & Housing,Home Improvement Works,15/05/2013,Inv. 1953,745.84
Lancaster City Council,30UH,APSE,Environmental Services,Subscriptions,22/05/2013,1314/86,2161
Lancaster City Council,30UH,Askam Construction Ltd,Regeneration and Planning,Capital Payments To Contractors,01/05/2013,113,1519.11
Lancaster City Council,30UH,Audioworks (NW) Ltd,Resources,Hire Of Equipment,22/05/2013,9336,579
Lancaster City Council,30UH,Bang Design Ltd,Health & Housing,Printing & Stationery,02/05/2013,BANG010767,1910
Lancaster City Council,30UH,Bay Scaffolding Ltd,Environmental Services,Materials - General,13/05/2013,7634,650
Lancaster City Council,30UH,BNP Paribas Leasing Solutions Ltd,Resources,Integrated Reception System,23/05/2013,4585376,5889.82
Lancaster City Council,30UH,Booker,Health & Housing,Materials For Resale,23/05/2013,19202,647.51
Lancaster City Council,30UH,Booker,Health & Housing,Materials For Resale,30/05/2013,19274,765.47
Lancaster City Council,30UH,Booker Ltd,Health & Housing,Materials For Resale,10/05/2013,19059,852.55
Lancaster City Council,30UH,bookers,Health & Housing,Vending Machine Supplies,03/05/2013,18970,515.27
Lancaster City Council,30UH,bookers,Health & Housing,Vending Machine Supplies,03/05/2013,18971,844.3
Lancaster City Council,30UH,Border Aggregates,Health & Housing,Grounds Maintenance - Other,07/05/2013,212118,553.44
Lancaster City Council,30UH,Brent Roebuck Road Markings Ltd,Health & Housing,R & M - Buildings,08/05/2013,73156,1704
Lancaster City Council,30UH,British Gas Business,Health & Housing,Electricity,02/05/2013,59396680/1,958.21
Lancaster City Council,30UH,British Gas Business,Health & Housing,Electricity,02/05/2013,59891279/1,880.69
Lancaster City Council,30UH,British Gas Business,Health & Housing,Electricity,02/05/2013,60480092/1,867.94
Lancaster City Council,30UH,British Gas Business,Health & Housing,Electricity,02/05/2013,61005801/1,905.38
Lancaster City Council,30UH,British Gas Business,Health & Housing,Electricity,22/05/2013,61732547/1,766.2
Lancaster City Council,30UH,British Gas Business,Health & Housing,Electricity,22/05/2013,61732709/1,1002.68
Lancaster City Council,30UH,British Gas Business,Health & Housing,Gas,22/05/2013,61788723/1,594.86
Lancaster City Council,30UH,British Gas Business,Health & Housing,Gas,23/05/2013,61788666/1,894.07
Lancaster City Council,30UH,British Gas Business,Health & Housing,Gas,23/05/2013,61788667/1,576.84
Lancaster City Council,30UH,British Gas Business,Health & Housing,Gas,23/05/2013,61788668/1,1590.56
Lancaster City Council,30UH,British Gas Business,Health & Housing,Gas,23/05/2013,61788725/1,1665.53
Lancaster City Council,30UH,British Gas Business,Health & Housing,Gas,23/05/2013,61788726/1,1947.96
Lancaster City Council,30UH,British Gas Business,Health & Housing,Gas,23/05/2013,61788727/1,2283.19
Lancaster City Council,30UH,British Gas Business,Health & Housing,Gas,23/05/2013,61791382/1,2059.36
Lancaster City Council,30UH,British Gas Business,Environmental Services,Gas,09/05/2013,59967772/1,1134.71
Lancaster City Council,30UH,British Gas Business,Environmental Services,Gas,09/05/2013,59973171/1,1534.33
Lancaster City Council,30UH,British Gas Business,Environmental Services,Gas,09/05/2013,61049220/1,2168.77
Lancaster City Council,30UH,British Gas Business,Environmental Services,Gas,09/05/2013,61049226/1,2706.1
Lancaster City Council,30UH,British Gas Business,Environmental Services,Gas,30/05/2013,61788738/1,583.99
Lancaster City Council,30UH,British Gas Business,Resources,Gas,17/05/2013,61464525/1,2202.82
Lancaster City Council,30UH,British Gas Business,Resources,Gas,22/05/2013,61788671/1,660.04
Lancaster City Council,30UH,British Gas Business,Resources,Gas,22/05/2013,61788724/1,1889.3
Lancaster City Council,30UH,British Gas Business,Resources,Gas,22/05/2013,61791507/1,1682.91
Lancaster City Council,30UH,British Gas Business,Resources,R & M - Buildings,29/05/2013,ppr000061,1095.6
Lancaster City Council,30UH,British Telecommunications plc,Resources,Telephones,09/05/2013,VP 70661270 Q03801,3698.94
Lancaster City Council,30UH,Butterfly Conservation,Regeneration and Planning,Grants,09/05/2013,npr000066,2769
Lancaster City Council,30UH,C and H Product Ltd,Health & Housing,Equipment and Tools - General,30/05/2013,11002,5388
Lancaster City Council,30UH,C H Brownsord Ltd,Environmental Services,Contracted Services,07/05/2013,299,1309
Lancaster City Council,30UH,C H Brownsord Ltd,Environmental Services,R & M - Buildings,29/05/2013,308,6100
Lancaster City Council,30UH,C V Spares (Lancaster) Ltd,Environmental Services,Repair & Mtce Of Vehicles,15/05/2013,1254,800
Lancaster City Council,30UH,Cable&Wireless UK,Resources,Data Line Rental,02/05/2013,UK19/042013/4955,999
Lancaster City Council,30UH,Cable&Wireless UK,Resources,Data Line Rental,09/05/2013,UK10/052013/5195,1983.28
Lancaster City Council,30UH,Cable&Wireless UK,Resources,Line Rental - Members,09/05/2013,B1-16255645,912.15
Lancaster City Council,30UH,Cable&Wireless UK,Resources,Telephones,09/05/2013,11954562,1128.56
Lancaster City Council,30UH,Capra Design,Regeneration and Planning,Forestry Commission Works,16/05/2013,690,650
Lancaster City Council,30UH,Capra Design,Regeneration and Planning,Marketing,10/05/2013,683,565
Lancaster City Council,30UH,Capra Design,Regeneration and Planning,Marketing,10/05/2013,687,615
Lancaster City Council,30UH,Carlisle Glass Limited,Environmental Services,Equipment and Tools - General,29/05/2013,M 577092,2711
Lancaster City Council,30UH,Carlisle Glass Limited,Environmental Services,Materials - General,03/05/2013,M 576181,1077
Lancaster City Council,30UH,Carlisle Glass Limited,Environmental Services,Other Construction Costs,13/05/2013,M 576174,984.13
Lancaster City Council,30UH,Catersure Ltd,Health & Housing,Equipment and Tools - General,01/05/2013,41961,1973.4
Lancaster City Council,30UH,CEMEX UK Materials Ltd,Environmental Services,Materials - General,15/05/2013,3006053656,535.15
Lancaster City Council,30UH,Centerprise International Ltd,Resources,Purchase Of Equipment,08/05/2013,90135883,615
Lancaster City Council,30UH,"Central Law Training Ltd.,",Governance,Service Training Budget,29/05/2013,4095136,-525
Lancaster City Council,30UH,CHG-Meridian Computer Leasing UK Ltd,Health & Housing,Equipment and Tools - General,17/05/2013,6001608,1400
Lancaster City Council,30UH,Chubb Electronic Security Limited,Environmental Services,Equipment Maintenance,20/05/2013,3851140,11723.82
Lancaster City Council,30UH,Chubb Electronic Security Limited,Environmental Services,Equipment Maintenance,20/05/2013,3984694,11723.82
Lancaster City Council,30UH,Chubb Fire,Health & Housing,Equipment and Tools - General,23/05/2013,19203,569
Lancaster City Council,30UH,Cleanall Services Ltd.,Resources,Other Cleaning,22/05/2013,20091,6022.38
Lancaster City Council,30UH,CleanerWay,Resources,R & M - Buildings,24/05/2013,SH/LTH,825
Lancaster City Council,30UH,Clear Skies Software,Health & Housing,Software Miscellaneous,13/05/2013,CSS2143,1450
Lancaster City Council,30UH,Climate Control Engineering,Environmental Services,Contracted Services,10/05/2013,10186,1656
Lancaster City Council,30UH,Colin Briscoe Construction Ltd,Regeneration and Planning,Capital Payments To Contractors,01/05/2013,112,70953.79
Lancaster City Council,30UH,Colin Briscoe Construction Ltd,Regeneration and Planning,Capital Payments To Contractors,30/05/2013,114,11644.28
Lancaster City Council,30UH,Concorde Informatics Technology Group Limited,Resources,Infrastructure - Update & Maintenance,23/05/2013,INV30547,1125
Lancaster City Council,30UH,Consilium Technologies Ltd,Environmental Services,Capital Payments To Contractors,13/05/2013,17581,1090
Lancaster City Council,30UH,Constructing the Future Lancashire Limited,Environmental Services,Apprenticeship Scheme,03/05/2013,CTFL/SINV/00000329,1399.28
Lancaster City Council,30UH,Constructing the Future Lancashire Limited,Environmental Services,Apprenticeship Scheme,03/05/2013,CTFL/SINV/00000342,995.89
Lancaster City Council,30UH,Contact One Limited,Resources,R & M - Buildings,14/05/2013,2985,1062
Lancaster City Council,30UH,Contact One Limited,Resources,R & M - Buildings,14/05/2013,2988,653
Lancaster City Council,30UH,Container Care Solutions,Environmental Services,Materials For Resale,07/05/2013,3224,650
Lancaster City Council,30UH,Container Care Solutions,Environmental Services,Materials For Resale,07/05/2013,3251,510
Lancaster City Council,30UH,Container Care Solutions,Environmental Services,Materials For Resale,07/05/2013,3251,680
Lancaster City Council,30UH,Contour Showers Ltd.,Environmental Services,Materials - General,07/05/2013,404812,519.4
Lancaster City Council,30UH,Coral Products (Mouldings) Ltd,Environmental Services,Equipment and Tools - General,13/05/2013,47120,5200
Lancaster City Council,30UH,Corona Energy,Health & Housing,Gas,02/05/2013,8205114,1436.86
Lancaster City Council,30UH,Crossling Ltd,Environmental Services,White Lund Stock,13/05/2013,723967,844.41
Lancaster City Council,30UH,Crossling Ltd,Environmental Services,White Lund Stock,13/05/2013,723968,640.59
Lancaster City Council,30UH,Crossling Ltd,Environmental Services,White Lund Stock,28/05/2013,734224,618
Lancaster City Council,30UH,Crossling Ltd,Environmental Services,White Lund Stock,28/05/2013,734880,878
Lancaster City Council,30UH,Cyclescheme Limited,Resources,Purchase of Cycles,09/05/2013,W181115,764
Lancaster City Council,30UH,Cyclescheme Limited,Resources,Purchase of Cycles,16/05/2013,W183088,692.46
Lancaster City Council,30UH,Cyclescheme Limited,Resources,Purchase of Cycles,30/05/2013,W184063,1246.67
Lancaster City Council,30UH,Cyclescheme Limited,Resources,Purchase of Cycles,30/05/2013,W184615,620.83
Lancaster City Council,30UH,D A Edgar Plastering & Tiling,Environmental Services,Capital Payments To Contractors,08/05/2013,6,1875
Lancaster City Council,30UH,D.V.L.A.,Environmental Services,Vehicle Licences,13/05/2013,19084,652.5
Lancaster City Council,30UH,Daniel Thwaites plc,Health & Housing,Bar Supplies,23/05/2013,19206,641.16
Lancaster City Council,30UH,Dantherm Ltd,Health & Housing,R & M - Buildings,10/05/2013,10105790,2450
Lancaster City Council,30UH,Dave Wilson Developments,Health & Housing,Capital Grants,02/05/2013,spr000191,1833.89
Lancaster City Council,30UH,Dave Wilson Developments,Health & Housing,Capital Grants,09/05/2013,spr000196,2994.53
Lancaster City Council,30UH,Dave Wilson Developments,Health & Housing,Capital Grants,15/05/2013,spr000203,1400
Lancaster City Council,30UH,Dave Wilson Developments,Health & Housing,Capital Grants,15/05/2013,spr000204,2487.58
Lancaster City Council,30UH,Dave Wilson Developments,Health & Housing,Capital Grants,29/05/2013,spr000212,2275.68
Lancaster City Council,30UH,David A. Farrer Limited,Environmental Services,Materials - General,30/05/2013,3812,532
Lancaster City Council,30UH,David Redmore Garden and Landscape Design Ltd,Environmental Services,Materials - General,08/05/2013,594/1,800
Lancaster City Council,30UH,David Redmore Garden and Landscape Design Ltd,Environmental Services,R & M - Buildings,08/05/2013,594/1,800
Lancaster City Council,30UH,Dennis Eagle Ltd,Environmental Services,Purchase Of Vehicles Etc,07/05/2013,222864,1200
Lancaster City Council,30UH,Dennis Eagle Ltd,Environmental Services,Purchase Of Vehicles Etc,07/05/2013,222864,123405
Lancaster City Council,30UH,Dennis Eagle Ltd,Environmental Services,Purchase Of Vehicles Etc,07/05/2013,222864,1850
Lancaster City Council,30UH,Dennis Eagle Ltd,Environmental Services,Purchase Of Vehicles Etc,07/05/2013,222864,2900
Lancaster City Council,30UH,Dennis Eagle Ltd,Environmental Services,Purchase Of Vehicles Etc,07/05/2013,222864,16800
Lancaster City Council,30UH,Dennis Eagle Ltd,Environmental Services,Purchase Of Vehicles Etc,07/05/2013,222864,820
Lancaster City Council,30UH,Dennis Eagle Ltd,Environmental Services,Vehicle Licences,08/05/2013,D89714,4230
Lancaster City Council,30UH,Dick Leigh Chainsaw Specialist,Environmental Services,Equipment and Tools - General,08/05/2013,139986,805
Lancaster City Council,30UH,Dickinson & Whitaker Limited,Health & Housing,Capital Grants,23/05/2013,spr000208,2900
Lancaster City Council,30UH,Dickinson & Whitaker Limited,Health & Housing,Home Improvement Works,24/05/2013,Inv. 019,2535
Lancaster City Council,30UH,Dutton International Limited t/a Masterstaff,Environmental Services,Contracted Services,08/05/2013,M173403,1276.64
Lancaster City Council,30UH,Dutton International Limited t/a Masterstaff,Environmental Services,Contracted Services,08/05/2013,M173480,1268.89
Lancaster City Council,30UH,E.ON,Health & Housing,Electricity,09/05/2013,12910592590,1361.43
Lancaster City Council,30UH,E.ON,Resources,Electricity,20/05/2013,HD1B8CBE8,506.96
Lancaster City Council,30UH,E.ON,Regeneration and Planning,Electricity,07/05/2013,HE7A83349,1117.93
Lancaster City Council,30UH,E.ON ,Environmental Services,Electricity,01/05/2013,400397435,537.13
Lancaster City Council,30UH,E.ON ,Environmental Services,Electricity,20/05/2013,HE81B68A6,672.69
Lancaster City Council,30UH,Ebuyer,Resources,Software - SCUBA,02/05/2013,18960,1324.63
Lancaster City Council,30UH,Electricity North West Limited,Resources,R & M - Buildings,13/05/2013,ppr000060,3925.57
Lancaster City Council,30UH,Emblem Print Products Ltd,Health & Housing,Materials For Resale,01/05/2013,53531,644.43
Lancaster City Council,30UH,Emo Oil Ltd,Environmental Services,White Lund Stock,08/05/2013,9519105,24534.37
Lancaster City Council,30UH,Environment Agency,Environmental Services,Miscellaneous Licences,09/05/2013,N01133388,6555
Lancaster City Council,30UH,Environment Agency,Resources,Water Services,01/05/2013,428941N,2052
Lancaster City Council,30UH,Envirovent Ltd,Environmental Services,Contracted Services,01/05/2013,100573,630
Lancaster City Council,30UH,Envirovent Ltd,Environmental Services,Contracted Services,01/05/2013,100574,630
Lancaster City Council,30UH,Envirovent Ltd,Environmental Services,Contracted Services,01/05/2013,100575,630
Lancaster City Council,30UH,Envirovent Ltd,Environmental Services,Contracted Services,01/05/2013,102184,810
Lancaster City Council,30UH,Envirovent Ltd,Environmental Services,Contracted Services,01/05/2013,102512,525
Lancaster City Council,30UH,ESRI (UK) Limited,Resources,Software - Arcview ArcIMS,16/05/2013,116138,660
Lancaster City Council,30UH,ESRI (UK) Limited,Resources,Software - Arcview ArcIMS,16/05/2013,116138,5125
Lancaster City Council,30UH,ESRI (UK) Limited,Resources,Software - Arcview ArcIMS,16/05/2013,116138,2400
Lancaster City Council,30UH,ESRI (UK) Limited,Resources,Software - Arcview ArcIMS,16/05/2013,116138,850
Lancaster City Council,30UH,ESRI (UK) Limited,Resources,Software - Arcview ArcIMS,16/05/2013,116138,2950
Lancaster City Council,30UH,ESRI (UK) Limited,Resources,Software - Arcview ArcIMS,16/05/2013,116138,1425
Lancaster City Council,30UH,ESRI (UK) Limited,Resources,Software - Arcview ArcIMS,16/05/2013,116138,1425
Lancaster City Council,30UH,ESRI (UK) Limited,Resources,Software - Arcview ArcIMS,16/05/2013,116138,500
Lancaster City Council,30UH,ESRI (UK) Limited,Resources,Software - Arcview ArcIMS,16/05/2013,116138,2000
Lancaster City Council,30UH,ESRI (UK) Limited,Resources,Software - Arcview ArcIMS,16/05/2013,116138,1150
Lancaster City Council,30UH,ESRI (UK) Limited,Resources,Software - Arcview ArcIMS,16/05/2013,116138,660
Lancaster City Council,30UH,Evolution in Technology Limited,Health & Housing,Postages,02/05/2013,A405,1500.77
Lancaster City Council,30UH,Friends of Ryelands Park,Health & Housing,Grants,02/05/2013,bpr000143,2500
Lancaster City Council,30UH,FRS Roofing Services Limited,Resources,R & M - Buildings,01/05/2013,954,1492
Lancaster City Council,30UH,FRS Roofing Services Limited,Resources,R & M - Buildings,01/05/2013,968,2268
Lancaster City Council,30UH,Furniture Matters,Environmental Services,Materials - General,07/05/2013,142,650
Lancaster City Council,30UH,Furniture Matters,Environmental Services,Services - General,22/05/2013,254,16112
Lancaster City Council,30UH,G Robertson (Lancaster) Ltd,Resources,R & M - Buildings,28/05/2013,20603,755.16
Lancaster City Council,30UH,Gardners Tiles Ltd,Environmental Services,Other Construction Costs,01/05/2013,1266,970
Lancaster City Council,30UH,Gardners Tiles Ltd,Environmental Services,Other Construction Costs,13/05/2013,1300,925.34
Lancaster City Council,30UH,Garstang Cleaning Specialists,Health & Housing,R & M - Buildings,10/05/2013,11271,5478.5
Lancaster City Council,30UH,George Speight and Sons Ltd,Health & Housing,Materials For Resale,10/05/2013,19060,732.45
Lancaster City Council,30UH,Gerald Rawcliffe Motor Body Repairs,Resources,Insurance Excess,23/05/2013,24892,649.02
Lancaster City Council,30UH,Global Tourism Solutions (UK) Ltd,Health & Housing,Benchmarking/Research,20/05/2013,14080305,1040
Lancaster City Council,30UH,Granart Memorials,Health & Housing,Contracted Services,22/05/2013,6387,5840
Lancaster City Council,30UH,Greenham Trading Limited,Environmental Services,White Lund Stock,28/05/2013,11/169830,705
Lancaster City Council,30UH,Greenham Trading Limited,Environmental Services,White Lund Stock,28/05/2013,11/172870,804.9
Lancaster City Council,30UH,Gregson Community Association Ltd,Health & Housing,Grants,23/05/2013,bpr000149,2850
Lancaster City Council,30UH,Gullivers Truck Hire Ltd,Environmental Services,Materials - General,03/05/2013,1304/14085,625
Lancaster City Council,30UH,Gullivers Truck Hire Ltd,Environmental Services,Materials - General,15/05/2013,1305/02013,625
Lancaster City Council,30UH,Happy Creative Limited,Health & Housing,Printing & Stationery,15/05/2013,H3008,912
Lancaster City Council,30UH,Harvey Rush Entertainments,Health & Housing,Entertainment Fees,21/05/2013,936,500
Lancaster City Council,30UH,Herbert T. Forrest Ltd,Environmental Services,Capital Payments To Contractors,01/05/2013,101584-13,10858.88
Lancaster City Council,30UH,Herbert T. Forrest Ltd,Environmental Services,Capital Payments To Contractors,07/05/2013,101584-14,68668.31
Lancaster City Council,30UH,Herbert T. Forrest Ltd,Environmental Services,Capital Payments To Contractors,15/05/2013,101615-1,137022.42
Lancaster City Council,30UH,Highwood Consultants Ltd,Environmental Services,Capital Payments To Contractors,08/05/2013,20416,3661.05
Lancaster City Council,30UH,Hilary Smith,Regeneration and Planning,Countryside Projects Wardening,02/05/2013,Jan-13,530
Lancaster City Council,30UH,Historic Property Restoration Limited,Resources,R & M - Buildings,28/05/2013,2634,3950
Lancaster City Council,30UH,Historic Property Restoration Limited,Resources,R & M - Buildings,28/05/2013,2635,825
Lancaster City Council,30UH,Honeywell Control Systems Ltd,Resources,R & M - Buildings,02/05/2013,5200735968,1720.48
Lancaster City Council,30UH,Hopewiser Limited,Resources,Software - LLPG,23/05/2013,HW16165,2750
Lancaster City Council,30UH,Hornby-With-Farleton Parish Council,Regeneration and Planning,R & M - General,10/05/2013,102,2000
Lancaster City Council,30UH,Hotfoot Design Limited,Health & Housing,Printing & Stationery,01/05/2013,H000491,920
Lancaster City Council,30UH,Hotfoot Design Limited,Health & Housing,Printing & Stationery,15/05/2013,H000501,2430
Lancaster City Council,30UH,Howdens Joinery Co,Environmental Services,Materials - General,08/05/2013,D61/0042709,1000.8
Lancaster City Council,30UH,Howdens Joinery Co,Environmental Services,Materials - General,15/05/2013,D61/0044058,789.8
Lancaster City Council,30UH,Hygiene Cleaning Supplies Ltd,Resources,Cleaning Materials,28/05/2013,19243,505.02
Lancaster City Council,30UH,In Touch Ltd,Health & Housing,Radio Equipment,01/05/2013,70031,1400
Lancaster City Council,30UH,Instarmac Group PLC,Environmental Services,White Lund Stock,07/05/2013,407881,1716.12
Lancaster City Council,30UH,J C Critchley Ltd,Environmental Services,Capital Payments To Contractors,01/05/2013,860,2432
Lancaster City Council,30UH,J C Critchley Ltd,Environmental Services,Capital Payments To Contractors,15/05/2013,861,4901
Lancaster City Council,30UH,J C Critchley Ltd,Environmental Services,Capital Payments To Contractors,17/05/2013,862,1200
Lancaster City Council,30UH,J C Critchley Ltd,Environmental Services,Capital Payments To Contractors,22/05/2013,864,3052
Lancaster City Council,30UH,J C Critchley Ltd,Environmental Services,Contracted Services,01/05/2013,859,4770
Lancaster City Council,30UH,J C Critchley Ltd,Environmental Services,Contracted Services,22/05/2013,863,6040
Lancaster City Council,30UH,J J Metcalfe Ltd,Health & Housing,Capital Grants,09/05/2013,spr000195,2818.65
Lancaster City Council,30UH,Jewson Limited,Environmental Services,Other Construction Costs,03/05/2013,0333/0187435,686.7
Lancaster City Council,30UH,Jewson Limited,Environmental Services,White Lund Stock,13/05/2013,333/0188108,507.44
Lancaster City Council,30UH,Jewson Limited,Health & Housing,Grave Excavation,07/05/2013,0333/0187227,916.59
Lancaster City Council,30UH,Jill Trafford (Instructor),Health & Housing,Services - General,30/05/2013,May-13,689.8
Lancaster City Council,30UH,Johnson & Starley Ltd,Environmental Services,Materials - General,17/05/2013,D18929,626.57
Lancaster City Council,30UH,Johnston Publishing Ltd,Health & Housing,Miscellaneous Advertising,02/05/2013,573854,500
Lancaster City Council,30UH,Johnston Sweepers Ltd,Environmental Services,Repair & Mtce Of Vehicles,16/05/2013,60987080,516.79
Lancaster City Council,30UH,Johnston Sweepers Ltd,Environmental Services,Repair & Mtce Of Vehicles,16/05/2013,61019276,541.36
Lancaster City Council,30UH,Jones Hargreaves LLP,Resources,External Professional Fees,01/05/2013,0413.011PH,1250
Lancaster City Council,30UH,Kalimba,Health & Housing,Exhibitions & Events - % Above Guarantee,02/05/2013,K/ML/LCC 2013 A,1160
Lancaster City Council,30UH,Keycraft,Health & Housing,Materials For Resale,10/05/2013,19066,857.78
Lancaster City Council,30UH,Keyline Builders Merchant Ltd,Environmental Services,White Lund Stock,13/05/2013,1316 ADL648,690.36
Lancaster City Council,30UH,Killgerm Chemicals Ltd,Health & Housing,Materials - General,07/05/2013,OP/I553597,515
Lancaster City Council,30UH,Lancashire Constabulary,Health & Housing,Services - Civil Contingencies,17/05/2013,7500002123,911.88
Lancaster City Council,30UH,Lancashire County Council,Governance,Rent,29/05/2013,5200026086,1714.21
Lancaster City Council,30UH,Lancashire County Council,Environmental Services,Grants,22/05/2013,5200029884,4496.99
Lancaster City Council,30UH,Lancashire County Council,Health & Housing,Capital Grants,08/05/2013,spr000194,9371
Lancaster City Council,30UH,Lancashire County Council,Health & Housing,Capital Grants,13/05/2013,spr000200,3568
Lancaster City Council,30UH,Lancashire County Council,Health & Housing,Capital Grants,13/05/2013,spr000201,4149
Lancaster City Council,30UH,Lancashire County Council,Health & Housing,Capital Grants,17/05/2013,spr000205,2230
Lancaster City Council,30UH,Lancashire County Council,Health & Housing,Capital Grants,17/05/2013,spr000206,3155
Lancaster City Council,30UH,Lancashire County Council,Resources,Services - Lancs County Council,01/05/2013,5200027455,8200.57
Lancaster City Council,30UH,Lancashire County Council,Resources,Services - Legal Costs,01/05/2013,5200027455,546
Lancaster City Council,30UH,Lancashire County Council,Environmental Services,Capital Payments To Contractors,21/05/2013,5100096923,3731
Lancaster City Council,30UH,Lancashire County Council,Environmental Services,Capital Payments To Contractors,08/05/2013,5200027439,9581
Lancaster City Council,30UH,Lancashire County Council,Environmental Services,Landfill Tax,09/05/2013,5200027321,2807.4
Lancaster City Council,30UH,Lancashire County Council,Environmental Services,Services - Waste Disposal,09/05/2013,5200027810,76475.05
Lancaster City Council,30UH,Lancaster & District YMCA,Resources,Capital Grants,07/05/2013,fpr000144,18022.51
Lancaster City Council,30UH,Lancaster County Court,Governance,Legal & Court Costs,14/05/2013,19114,700
Lancaster City Council,30UH,Lancaster County Court,Governance,Legal & Court Costs,23/05/2013,19207,705
Lancaster City Council,30UH,Lancaster County Court,Governance,Legal & Court Costs,30/05/2013,19278,875
Lancaster City Council,30UH,Lancaster CVS,Health & Housing,Grants,02/05/2013,bpr000146,1897.01
Lancaster City Council,30UH,Lancaster CVS,Health & Housing,Grants,23/05/2013,bpr000147,20000
Lancaster City Council,30UH,Lancaster Management Services T/A LaraNichols ,Health & Housing,Other Cleaning,22/05/2013,7710,617.02
Lancaster City Council,30UH,LESS (Lancaster District) CIC,Health & Housing,Grants,02/05/2013,bpr000144,4000
Lancaster City Council,30UH,LUNS Ltd,Resources,Data Line Rental,23/05/2013,420045187,4140
Lancaster City Council,30UH,M & A Select Property,Health & Housing,Homelessness Priority Need Order,14/05/2013,spr000202,500
Lancaster City Council,30UH,M & D Forsyth Electrical Services Ltd,Environmental Services,Contracted Services,15/05/2013,161,675
Lancaster City Council,30UH,M & D Forsyth Electrical Services Ltd,Environmental Services,Materials - General,15/05/2013,167,1181
Lancaster City Council,30UH,M D Hanafin & Sons Ltd,Environmental Services,Contracted Services,10/05/2013,101041,786.46
Lancaster City Council,30UH,M D Hanafin & Sons Ltd,Environmental Services,Contracted Services,10/05/2013,101042,740.09
Lancaster City Council,30UH,M D Hanafin & Sons Ltd,Environmental Services,Contracted Services,10/05/2013,101046,4793.63
Lancaster City Council,30UH,M D Hanafin & Sons Ltd,Environmental Services,Contracted Services,29/05/2013,102328,1102.72
Lancaster City Council,30UH,M D Hanafin & Sons Ltd,Environmental Services,Contracted Services,29/05/2013,102332,959.86
Lancaster City Council,30UH,M D Hanafin & Sons Ltd,Environmental Services,Contracted Services,29/05/2013,102340,1847.05
Lancaster City Council,30UH,Macfarlane,Resources,Infrastructure - Update & Maintenance,09/05/2013,6276,950
Lancaster City Council,30UH,Macfarlane,Resources,Infrastructure - Update & Maintenance,09/05/2013,6276,2175
Lancaster City Council,30UH,Macfarlane,Resources,Software - CRM System,09/05/2013,6275,19343.98
Lancaster City Council,30UH,Macfarlane,Resources,Software Miscellaneous,09/05/2013,6276,950
Lancaster City Council,30UH,Macfarlane,Resources,Software Miscellaneous,09/05/2013,6276,850
Lancaster City Council,30UH,Macfarlane,Resources,Software Miscellaneous,09/05/2013,6276,850
Lancaster City Council,30UH,Made You Look!,Regeneration and Planning,Services - General,21/05/2013,20036 HG,750
Lancaster City Council,30UH,Magnet Limited,Environmental Services,Materials - General,29/05/2013,158/154695,615.44
Lancaster City Council,30UH,Magnet Limited,Environmental Services,Other Construction Costs,01/05/2013,158/154636,501.39
Lancaster City Council,30UH,Magnet Limited,Environmental Services,Other Construction Costs,14/05/2013,158/154634,509.07
Lancaster City Council,30UH,Maincoat Limited,Environmental Services,R & M - Buildings,07/05/2013,JEH/I/1356,7974
Lancaster City Council,30UH,Maincoat Limited,Environmental Services,R & M - Buildings,07/05/2013,JEH/I/1357,3987
Lancaster City Council,30UH,Maincoat Limited,Environmental Services,R & M - Buildings,07/05/2013,JEH/I/1357,3987
Lancaster City Council,30UH,Marsh Community Centre,Health & Housing,Community Development,22/05/2013,254,3412.5
Lancaster City Council,30UH,Melville Plasterers Ltd,Resources,R & M - Buildings,01/05/2013,2429,2124
Lancaster City Council,30UH,Membership Collection Agency,Health & Housing,Subscriptions,01/05/2013,LANCASTER.1063,579.5
Lancaster City Council,30UH,Membership Collection Agency,Health & Housing,Subscriptions,09/05/2013,07/05/2013,689.6
Lancaster City Council,30UH,Membership Collection Agency,Health & Housing,Subscriptions,30/05/2013,LANCASTER.1066,531
Lancaster City Council,30UH,Mercer & Sons Limited,Environmental Services,White Lund Stock,28/05/2013,714001,1019.7
Lancaster City Council,30UH,Mick Ogden Diesels,Environmental Services,Repair & Mtce Of Vehicles,21/05/2013,21639,575
Lancaster City Council,30UH,Mick Ogden Diesels,Environmental Services,Repair & Mtce Of Vehicles,21/05/2013,21641,940
Lancaster City Council,30UH,Mick Ogden Diesels,Environmental Services,Repair & Mtce Of Vehicles,21/05/2013,21945,960
Lancaster City Council,30UH,Middleton`s-Electrical Contractors,Health & Housing,R & M - Buildings,30/05/2013,295,590
Lancaster City Council,30UH,Mobile Mini UK Ltd,Environmental Services,Other Construction Costs,01/05/2013,712038032,780
Lancaster City Council,30UH,Morecambe Bay Building & Joinery Developments Ltd,Health & Housing,Capital Grants,09/05/2013,spr000197,7000
Lancaster City Council,30UH,Morecambe Bay Building & Joinery Developments Ltd,Health & Housing,Capital Grants,23/05/2013,spr000210,1085
Lancaster City Council,30UH,Morecambe Bay Guest House,Health & Housing,Services - Bed and Breakfast,03/05/2013,18985,1165
Lancaster City Council,30UH,Morecambe Bay Guest House,Health & Housing,Services - Bed and Breakfast,09/05/2013,19048,1100
Lancaster City Council,30UH,Morecambe Bay Guest House,Health & Housing,Services - Bed and Breakfast,14/05/2013,19105,830
Lancaster City Council,30UH,Morecambe Bay Guest House,Health & Housing,Services - Bed and Breakfast,21/05/2013,19172,1255
Lancaster City Council,30UH,Morecambe Press Ltd,Health & Housing,Printing & Stationery,01/05/2013,5759,1220
Lancaster City Council,30UH,Morecambe Press Ltd,Environmental Services,Printing & Stationery,07/05/2013,5737,605
Lancaster City Council,30UH,Morgan Lambert Limited,Environmental Services,Contracted Services,15/05/2013,15544,600
Lancaster City Council,30UH,Mrs. Karen Simpson (Instructor),Health & Housing,Services - General,02/05/2013,Apr-13,583
Lancaster City Council,30UH,N C Penrith Rural Drainage Specialists,Environmental Services,Capital Payments To Contractors,08/05/2013,1777,815.24
Lancaster City Council,30UH,N C Penrith Rural Drainage Specialists,Environmental Services,Capital Payments To Contractors,08/05/2013,1780,1320
Lancaster City Council,30UH,N C Penrith Rural Drainage Specialists,Environmental Services,Capital Payments To Contractors,08/05/2013,1781,9950
Lancaster City Council,30UH,N C Penrith Rural Drainage Specialists,Environmental Services,R & M - Buildings,08/05/2013,1782,1775
Lancaster City Council,30UH,New Mind Internet Consultancy Limited,Health & Housing,Software Purchase\Licences,21/05/2013,NM29213,1200
Lancaster City Council,30UH,Newclear Drains & Newlook Cleaning Services,Environmental Services,Contracted Services,09/05/2013,8448,680
Lancaster City Council,30UH,Newfields Catering Services,Governance,Civic Receptions & Mayoral Functions,29/05/2013,16/05/2013,2240
Lancaster City Council,30UH,NHS Lanarkshire,Governance,Services - Medical Fees,21/05/2013,L0025319,2394.28
Lancaster City Council,30UH,NHS Lanarkshire,Governance,Services - Medical Fees,24/05/2013,L0025118,595
Lancaster City Council,30UH,Niceic,Environmental Services,Equipment and Tools - General,21/05/2013,92308800,1035.46
Lancaster City Council,30UH,Nomix Enviro Ltd,Health & Housing,Grounds Maintenance - Other,07/05/2013,SI/02041193,1440
Lancaster City Council,30UH,North Lancashire Citizens Advice Bureaux,Health & Housing,Grants,23/05/2013,bpr000150,82500
Lancaster City Council,30UH,Northern Housing Consortium Ltd,Health & Housing,Tenants Participation,23/05/2013,46390,996
Lancaster City Council,30UH,Northern Housing Consortium Ltd,Health & Housing,Tenants Participation,30/05/2013,46389,996
Lancaster City Council,30UH,Northern Print Distribution Limited,Health & Housing,Brochure Distribution,15/05/2013,6349,660
Lancaster City Council,30UH,Northgate Information Solutions UK Limited,Governance,Search Fees,09/05/2013,91261308,10000
Lancaster City Council,30UH,NorthgateArinso UK Limited,Resources,Software Payroll-Personnel,13/05/2013,I2150/945/802/891,1530
Lancaster City Council,30UH,NorthgateArinso UK Limited,Resources,Software Payroll-Personnel,13/05/2013,I2150/945/802/891,950
Lancaster City Council,30UH,NorthgateArinso UK Limited,Resources,Software Payroll-Personnel,30/05/2013,I2152549,765
Lancaster City Council,30UH,NPS North West Ltd,Resources,R & M - Buildings,02/05/2013,03-10108,1190
Lancaster City Council,30UH,NPS North West Ltd,Resources,R & M - Buildings,02/05/2013,03-10111,1000
Lancaster City Council,30UH,NPS North West Ltd,Resources,R & M - Buildings,02/05/2013,03-10112,1000
Lancaster City Council,30UH,NSL Limited,Environmental Services,Cash Collection Expenses,20/05/2013,17206,3003.75
Lancaster City Council,30UH,NSL Limited,Environmental Services,Contracted Services,20/05/2013,17206,7696
Lancaster City Council,30UH,OC Cleaning Limited,Environmental Services,Window Cleaning,15/05/2013,1192,554.67
Lancaster City Council,30UH,Otis Ltd.,Environmental Services,Capital Payments To Contractors,29/05/2013,KS826937044A,46469
Lancaster City Council,30UH,Otis Ltd.,Resources,R & M - Buildings,01/05/2013,1071830,675
Lancaster City Council,30UH,Otis Ltd.,Resources,R & M - Buildings,01/05/2013,1071834,562.5
Lancaster City Council,30UH,Otis Ltd.,Resources,R & M - Buildings,02/05/2013,1047234,1023.06
Lancaster City Council,30UH,Otis Ltd.,Resources,R & M - Buildings,02/05/2013,1051548,1023.06
Lancaster City Council,30UH,Otis Ltd.,Resources,R & M - Buildings,02/05/2013,1071824,-1023.06
Lancaster City Council,30UH,Otis Ltd.,Resources,R & M - Buildings,02/05/2013,1071825,-1023.06
Lancaster City Council,30UH,Otis Ltd.,Resources,R & M - Buildings,02/05/2013,1071826,-1023.06
Lancaster City Council,30UH,Otis Ltd.,Resources,R & M - Buildings,02/05/2013,1071827,-1023.06
Lancaster City Council,30UH,Otis Ltd.,Resources,R & M - Buildings,02/05/2013,1071828,-1023.06
Lancaster City Council,30UH,Otis Ltd.,Resources,R & M - Buildings,02/05/2013,1071829,-1074.2
Lancaster City Council,30UH,Otis Ltd.,Resources,R & M - Buildings,07/05/2013,1063607,1023.06
Lancaster City Council,30UH,P & J Dust Extraction Ltd,Environmental Services,Capital Payments To Contractors,09/05/2013,83744,585
Lancaster City Council,30UH,P. A. Darwen,Resources,Office Equipment,09/05/2013,1419,1210
Lancaster City Council,30UH,P. A. Darwen,Resources,Office Equipment,09/05/2013,1419,1365
Lancaster City Council,30UH,Parksafe (Systems) Ltd,Environmental Services,Parksafe,20/05/2013,1771,12163.46
Lancaster City Council,30UH,Patronsoft Limited (Paypal),Resources,Infrastructure - Update & Maintenance,13/05/2013,19102,592.17
Lancaster City Council,30UH,Pennine Flooring Supplies Ltd,Environmental Services,White Lund Stock,13/05/2013,INV471824,1542.64
Lancaster City Council,30UH,Pentland Plants,Environmental Services,Materials - General,08/05/2013,49087,708.4
Lancaster City Council,30UH,Piccadilly Garden Ltd.,Environmental Services,Contracted Services,08/05/2013,1685,918.42
Lancaster City Council,30UH,Plumbase Ltd,Environmental Services,Other Construction Costs,08/05/2013,0177/01094994,727.26
Lancaster City Council,30UH,Power Trading Limited T/A Think Bathrooms,Health & Housing,Capital Grants,02/05/2013,spr000190,1420.31
Lancaster City Council,30UH,PPG Architectural Coatings UK Limited,Environmental Services,White Lund Stock,07/05/2013,4465421737,695.64
Lancaster City Council,30UH,PR Chauffeuring Services,Governance,Central Transport - General,15/05/2013,PR Chauffeuring,2295
Lancaster City Council,30UH,Premier Paper Ltd,Resources,Printing & Stationery,28/05/2013,6747270,1383
Lancaster City Council,30UH,Preston City Council,Health & Housing,Printing & Stationery,30/05/2013,1633450,672.87
Lancaster City Council,30UH,Preston City Council,Health & Housing,Printing & Stationery,30/05/2013,1633489,637.06
Lancaster City Council,30UH,Preston City Council,Resources,Grants,15/05/2013,M9,13420
Lancaster City Council,30UH,Preston City Council,Resources,Management Fees,15/05/2013,M9,74919.47
Lancaster City Council,30UH,Primary Times in Lancashire,Health & Housing,Miscellaneous Advertising,16/05/2013,1965,510
Lancaster City Council,30UH,Print Image Network Ltd,Governance,Printing & Stationery,29/05/2013,A009563,7545.2
Lancaster City Council,30UH,Print Image Network Ltd,Governance,Printing & Stationery,29/05/2013,A009573,1227.5
Lancaster City Council,30UH,Print Image Network Ltd,Governance,Printing & Stationery,29/05/2013,A009586,12895.4
Lancaster City Council,30UH,Print Image Network Ltd,Governance,Printing & Stationery,29/05/2013,A009587,845.5
Lancaster City Council,30UH,Print Image Network Ltd,Governance,Printing & Stationery,29/05/2013,A009606,690.4
Lancaster City Council,30UH,Profile Security Services Ltd,Environmental Services,Security Services,22/05/2013,93947,6189.85
Lancaster City Council,30UH,Promenade Concert Orchestra,Health & Housing,Venue - Premises Hire Costs,29/05/2013,19052013,1243
Lancaster City Council,30UH,Purchase Power,Resources,Postages,14/05/2013,BA554471,2026
Lancaster City Council,30UH,Quartzelec Ltd,Environmental Services,R & M - Buildings,29/05/2013,7054677,1088.94
Lancaster City Council,30UH,R Briggs & Son (Lancaster) Ltd,Environmental Services,Routine Maintenance,01/05/2013,16597,956.1
Lancaster City Council,30UH,R G Parkins & Partners Ltd,Resources,R & M - Buildings,28/05/2013,L27289/06,1495
Lancaster City Council,30UH,RandomStorm Ltd,Resources,Infrastructure - Update & Maintenance,23/05/2013,INV-2446,3000
Lancaster City Council,30UH,Remploy Ltd ,Environmental Services,Contracted Services,08/05/2013,SLS/80305555,6910.5
Lancaster City Council,30UH,Rentokil Initial UK Ltd,Resources,R & M - Buildings,01/05/2013,70562360,688.93
Lancaster City Council,30UH,Ricardo-AEA Ltd,Health & Housing,Services - Air Quality Monitoring,14/05/2013,6152274,600
Lancaster City Council,30UH,Ricardo-AEA Ltd,Health & Housing,Services - Contaminated Land,14/05/2013,6152274,600
Lancaster City Council,30UH,Ricoh UK Ltd,Resources,Printing\Copying Equipment,23/05/2013,87443971,7701.1
Lancaster City Council,30UH,Rogerson HomeServe Plus Limited,Environmental Services,Capital Payments To Contractors,29/05/2013,6850403,15190.89
Lancaster City Council,30UH,Rogerson HomeServe Plus Limited,Health & Housing,Capital Grants,13/05/2013,spr000199,2886.81
Lancaster City Council,30UH,Rogerson HomeServe Plus Limited,Health & Housing,Capital Grants,29/05/2013,spr000213,1534.28
Lancaster City Council,30UH,Rogerson HomeServe Plus Limited,Health & Housing,Capital Grants,29/05/2013,spr000214,2237.69
Lancaster City Council,30UH,Royal Mail Group Ltd,Governance,Postages,13/05/2013,9043124089,5844.57
Lancaster City Council,30UH,S R Joinery,Health & Housing,R & M - Buildings,17/05/2013,250,2443.41
Lancaster City Council,30UH,Sea Gems Limited,Health & Housing,Materials For Resale,01/05/2013,INV037610,639.44
Lancaster City Council,30UH,Sector Treasury Services Ltd,Resources,Equipment Operating Leases,16/05/2013,92946074,35783.8
Lancaster City Council,30UH,Seton,Health & Housing,Exhibitions & Events,01/05/2013,18909,559.9
Lancaster City Council,30UH,Shorrocks Building Works,Environmental Services,Contracted Services,01/05/2013,3093,838
Lancaster City Council,30UH,Shorrocks Building Works,Environmental Services,Contracted Services,01/05/2013,3094,666
Lancaster City Council,30UH,Shorrocks Building Works,Environmental Services,Contracted Services,01/05/2013,3098,1120
Lancaster City Council,30UH,Shorrocks Building Works,Environmental Services,Contracted Services,01/05/2013,3104,758
Lancaster City Council,30UH,Shorrocks Building Works,Environmental Services,Contracted Services,01/05/2013,3107,503
Lancaster City Council,30UH,Shorrocks Building Works,Environmental Services,Contracted Services,01/05/2013,3110,596
Lancaster City Council,30UH,Shorrocks Building Works,Environmental Services,Contracted Services,01/05/2013,3113,866
Lancaster City Council,30UH,Shorrocks Building Works,Environmental Services,Contracted Services,08/05/2013,3109,825
Lancaster City Council,30UH,Shorrocks Building Works,Environmental Services,Contracted Services,10/05/2013,3122,885
Lancaster City Council,30UH,Shorrocks Building Works,Environmental Services,Contracted Services,13/05/2013,3111,690
Lancaster City Council,30UH,Shorrocks Building Works,Environmental Services,Contracted Services,13/05/2013,3117,557
Lancaster City Council,30UH,Shorrocks Building Works,Environmental Services,Contracted Services,13/05/2013,3120,602
Lancaster City Council,30UH,Shorrocks Building Works,Environmental Services,Contracted Services,29/05/2013,3123,2100
Lancaster City Council,30UH,Shorrocks Building Works,Environmental Services,Contracted Services,29/05/2013,3123,568
Lancaster City Council,30UH,Shorrocks Building Works,Environmental Services,Void Maintenance - External,01/05/2013,3103,4792
Lancaster City Council,30UH,Siemens Financial Services Ltd,Health & Housing,Equipment Operating Leases,14/05/2013,212/13/0031840,567
Lancaster City Council,30UH,SitexOrbis Limited,Regeneration and Planning,Security Services,16/05/2013,R0483845M,1199.32
Lancaster City Council,30UH,Solarwinds Software Europe Lim,Resources,Infrastructure - Update & Maintenance,30/05/2013,19279,917
Lancaster City Council,30UH,Stadia Sports International Ltd,Health & Housing,R & M - Buildings,09/05/2013,inv117076,865.36
Lancaster City Council,30UH,Stagecoach,Health & Housing,Stagecoach Tickets,23/05/2013,19213,6368.88
Lancaster City Council,30UH,Stelmax Specialist Adhesives Ltd,Environmental Services,Other Construction Costs,08/05/2013,46152,645
Lancaster City Council,30UH,STM Environmental Ltd,Health & Housing,Services - Contaminated Land,10/05/2013,LAN\MAIN\2013,4895.1
Lancaster City Council,30UH,Supalite Fencing,Environmental Services,Other Construction Costs,01/05/2013,38737,1146.1
Lancaster City Council,30UH,Supra,Health & Housing,Materials - General,28/05/2013,19236,770.15
Lancaster City Council,30UH,Swift Fire & Security Systems,Environmental Services,R & M - Buildings,20/05/2013,1263815,617
Lancaster City Council,30UH,T Rodgers & Son,Health & Housing,Capital Grants,02/05/2013,spr000192,1783.33
Lancaster City Council,30UH,Tarmac Ltd,Environmental Services,Materials - General,14/05/2013,9029478568,1158.65
Lancaster City Council,30UH,Technogym UK Ltd,Health & Housing,Tpt & Plant Operating Leases,24/05/2013,13005400,2126.14
Lancaster City Council,30UH,The Bay,Health & Housing,Miscellaneous Advertising,07/05/2013,546497,602.33
Lancaster City Council,30UH,The Dukes Playhouse Ltd,Health & Housing,Grants,22/05/2013,Grant 2013/2014/1,33175
Lancaster City Council,30UH,The Dukes Playhouse Ltd,Health & Housing,Grants,23/05/2013,bpr000148,5600
Lancaster City Council,30UH,The Industrial Work Solutions UK Limited,Environmental Services,Contracted Services,09/05/2013,21631,1448.96
Lancaster City Council,30UH,The James Mercer Group,Health & Housing,Other Fixed Plant,14/05/2013,SM74383,521
Lancaster City Council,30UH,The Samaritans of Lancaster and District,Health & Housing,Grants,02/05/2013,bpr000142,2000
Lancaster City Council,30UH,The Travellers Choice,Health & Housing,Central Transport - General,08/05/2013,59542,547.46
Lancaster City Council,30UH,The Travellers Choice,Health & Housing,Central Transport - General,08/05/2013,59543,865.2
Lancaster City Council,30UH,The Travellers Choice,Health & Housing,Central Transport - General,08/05/2013,59544,592.8
Lancaster City Council,30UH,T-Mobile (UK) Ltd.,Resources,Mobile Telephones,08/05/2013,V00902040567,1181.75
Lancaster City Council,30UH,TNT Post North Limited,Resources,Postages,08/05/2013,IN18PS13005301,1418.46
Lancaster City Council,30UH,TNT Post North Limited,Resources,Postages,08/05/2013,IN18PS13005579,1649.35
Lancaster City Council,30UH,Total Gas and Power,Health & Housing,Gas,10/05/2013,19058,3868.09
Lancaster City Council,30UH,Total Gas and Power,Health & Housing,VAT Control,10/05/2013,19058,773.62
Lancaster City Council,30UH,Travis Perkins Trading Company Ltd,Environmental Services,Other Construction Costs,01/05/2013,9286 AIV597,1080
Lancaster City Council,30UH,UK Athletics Limited,Health & Housing,Miscellaneous Licences,21/05/2013,5219,500
Lancaster City Council,30UH,UK Roofing Co,Environmental Services,Contracted Services,15/05/2013,2851,1100
Lancaster City Council,30UH,UK Roofing Co,Regeneration and Planning,R & M - Buildings,07/05/2013,2860,900
Lancaster City Council,30UH,United Utilities,Health & Housing,Water Services,29/05/2013,19255,1533.47
Lancaster City Council,30UH,United Utilities,Health & Housing,Water Services,29/05/2013,19256,913.76
Lancaster City Council,30UH,United Utilities Water Plc,Health & Housing,Water Services,07/05/2013,4025402084,1219.08
Lancaster City Council,30UH,United Utilities Water Plc,Health & Housing,Water Services,07/05/2013,4031095457,592.74
Lancaster City Council,30UH,United Utilities Water Plc,Resources,Water Services,08/05/2013,4084242484,3770.73
Lancaster City Council,30UH,United Utilities Water Plc,Health & Housing,Water Services,09/05/2013,403 136 9350,1582.09
Lancaster City Council,30UH,United Utilities Water Plc,Health & Housing,Water Services,15/05/2013,408 568 9830,1119.85
Lancaster City Council,30UH,United Utilities Water Plc,Environmental Services,Water Services,09/05/2013,4025466182,1479.55
Lancaster City Council,30UH,Vale of Lune Rugby Football Club,Health & Housing,Grants,02/05/2013,bpr000145,5000
Lancaster City Council,30UH,Valley View Pets Hotel,Health & Housing,Services - Kennelling,08/05/2013,14/13,2695
Lancaster City Council,30UH,Van Bodies (Lancs.) Ltd,Environmental Services,Equipment and Tools - General,15/05/2013,14484,586
Lancaster City Council,30UH,Venn Group Limited,Governance,Salaries - Basic,15/05/2013,847369,1720.18
Lancaster City Council,30UH,Viper and Vine Ltd,Health & Housing,Materials - General,01/05/2013,18914,619.84
Lancaster City Council,30UH,Vodafone Limited,Resources,Mobile Telephones,30/05/2013,67666350,5644.25
Lancaster City Council,30UH,Walker Safety,Regeneration and Planning,R & M - General,21/05/2013,290413,1700
Lancaster City Council,30UH,Wallgate Ltd.,Environmental Services,Services - General,08/05/2013,48222,1057
Lancaster City Council,30UH,Water Sculptures,Regeneration and Planning,R & M - Sea & River / Promenade,16/05/2013,W149,2752.86
Lancaster City Council,30UH,Watkins Hire Limited,Resources,R & M - Buildings,03/05/2013,42034,3000
Lancaster City Council,30UH,West Coast Glass (Morecambe) Ltd,Environmental Services,Materials - General,08/05/2013,20267P,783
Lancaster City Council,30UH,West Coast Glass (Morecambe) Ltd,Environmental Services,Materials - General,08/05/2013,20267R,522
Lancaster City Council,30UH,West Coast Glass (Morecambe) Ltd,Environmental Services,Materials - General,20/05/2013,20365M,522
Lancaster City Council,30UH,Whinfield Study Trust,Health & Housing,Electricity,22/05/2013,WHO121,698.65
Lancaster City Council,30UH,Whinfield Study Trust,Health & Housing,Gas,22/05/2013,WHO121,1392.69
Lancaster City Council,30UH,Woodstock Signs,Regeneration and Planning,Countryside Projects Wardening,09/05/2013,8487,1040
Lancaster City Council,30UH,Wybone Limited,Environmental Services,Materials - General,08/05/2013,98483/M,4761.9
Lancaster City Council,30UH,"Your Electrical S, S & S Ltd  T/a YESSS Electrical",Environmental Services,Other Construction Costs,10/05/2013,062INV00010,2759.6
Lancaster City Council,30UH,"Your Electrical S, S & S Ltd  T/a YESSS Electrical",Environmental Services,White Lund Stock,13/05/2013,062IN00008,1287
Lancaster City Council,30UH,"Your Electrical S, S & S Ltd  T/a YESSS Electrical",Environmental Services,White Lund Stock,14/05/2013,062IN00018,1544.4
